Cogmind - Beta 15 @@@ ROGUE MODE // 2025.07.19 @ 19:48:27 Player: Triffids Result: Self-destructed Performance ------------- Evolutions (2) 1000 Regions Visited (3) 600 Robots Destroyed (28) 140 Value Destroyed (633) 633 Prototype IDs (2) 40 Alien Tech Used (0) 0 Bonus (0) 0 TOTAL SCORE: 2413 Bonus ------- None Cogmind --------- Core Integrity 550/550 Matter 262/300 Energy 240/240 System Corruption 0% Temperature Cool (0) Movement Walking (120) Location -8/Materials Parts ------- > --- POWER (1) -------- Nuclear Core > --- PROPULSION (4) --- Aluminum Leg Aluminum Leg Aluminum Leg Aluminum Leg > --- UTILITY (3) ------ Sensor Array Signal Interpreter > --- WEAPON (3) ------- Spread Laser Mini Grenade Launcher > --- INVENTORY (5) ---- Nuclear Core Improved Heat Sink Improved Terrain Scanner Hacking Suite Mining Laser Peak State ------------ > --- POWER ------------ Nuclear Core > --- PROPULSION ------- Aluminum Leg Aluminum Leg Aluminum Leg Aluminum Leg > --- UTILITY ---------- Sensor Array Signal Interpreter > --- WEAPON ----------- Spread Laser Autogun > --- INVENTORY -------- Nuclear Core Improved Heat Sink Improved Terrain Scanner Mini Grenade Launcher Mining Laser [Rating: 14] Favorites ----------- Power Ion Engine Engine Ion Engine Power Core Nuclear Core Propulsion Aluminum Leg Leg Aluminum Leg Utility Signal Interpreter Device Sensor Array Storage Small Storage Unit Processor Signal Interpreter Weapon Medium Laser Energy Gun Medium Laser Ballistic Gun Autogun Launcher Mini Grenade Launcher Special Weapon Mining Laser Build | -11 -10 -9 -8 ------- Run | Yrd Mat Mat Mat Slots Evolved 4 | . . 2 2 Power . | . . . . Propulsion 2 | . . 2 . Utility 1 | . . . 1 Weapon 1 | . . . 1 Parts Attached 22 | 7 7 8 . Power 3 | 1 1 1 . Engine 2 | 1 1 . . Core 1 | . . 1 . Reactor . | . . . . Propulsion 6 | 2 . 4 . Treads . | . . . . Leg 6 | 2 . 4 . Wheel . | . . . . Hover . | . . . . Flight . | . . . . Utility 5 | 2 3 . . Device 3 | 1 2 . . Storage 1 | 1 . . . Processor 1 | . 1 . . Hackware . | . . . . Protection . | . . . . Artifact . | . . . . Weapon 8 | 2 3 3 . Energy Gun 3 | 1 1 1 . Energy Cannon . | . . . . Ballistic Gun 2 | 1 . 1 . Ballistic Cannon . | . . . . Launcher 2 | . 1 1 . Special Weapon 1 | . 1 . . Impact Weapon . | . . . . Slashing Weapon . | . . . . Piercing Weapon . | . . . . Special Melee Weapon . | . . . . Unidentified Prototypes . | . . . . Parts Lost 1 | . . 1 . Power . | . . . . Propulsion . | . . . . Utility . | . . . . Weapon 1 | . . 1 . Highest Loss Streak 1 | . . 1 . To Critical Strikes . | . . . . Average Backups 5 | 2 6 4 4 Power . | . . . 1 Propulsion . | . 1 . . Utility 1 | . 1 1 2 Weapon 2 | 1 2 1 1 Tool/Special . | . . . . Unused Backups 4 | . 1 . 3 Power 1 | . . . 1 Propulsion . | . . . . Utility 2 | . . . 2 Weapon 1 | . 1 . . Tool/Special . | . . . . Average Slot Usage (%) 98 | . 100 99 81 Engine 7 | . 14 3 . Core 4 | . . 7 9 Leg 37 | . 28 43 36 Device 12 | . 14 11 9 Storage 4 | . 12 . . Processor 7 | . 1 11 9 Energy Gun 12 | . 15 11 9 Ballistic Gun 9 | . 11 9 . Launcher 1 | . . 1 9 Peak Build Rating 14 | 7 8 14 14 Average Rating 9 | 5 7 12 14 On Entrance 7 | . 7 7 14 Naked Turns . | . . . . Heaviest Build 15 | 15 15 14 12 Greatest Support 40 | 20 20 40 40 Greatest Overweight (x) 1 | 1 . . . Average Overweight (x) . | . . . . Largest Inventory Capacity 8 | 8 8 5 5 Average Capacity 6 | 7 7 5 5 Most Carried 8 | 5 8 5 5 Average Carried 5 | 3 6 4 4 Final Capacity 8 | 8 5 5 5 Final Carried 5 | 4 5 4 5 Class Distribution -------------------- 100% | Mutant Dominant Class ---------------- Mutant | -10/Materials Mutant | -9/Materials Mutant | -8/Materials Resources | -11 -10 -9 -8 ----------- Run | Yrd Mat Mat Mat Matter Collected 663 | 300 64 290 9 Remotely . | . . . . Salvage Created 985 | 121 160 690 14 Parts 49 | 7 8 32 2 Haulers Intercepted 1 | . . 1 . Recyclers Shooed . | . . . . Parts Field Recycled . | . . . . Retrieved Matter . | . . . . Parts Self-Destructed . | . . . . Prevented . | . . . . Kills | -11 -10 -9 -8 ------- Run | Yrd Mat Mat Mat Combat Hostiles Destroyed 16 | . 2 14 . Guns 14 | . 2 12 . AOE 1 | . . 1 . Classes Destroyed 10 | 2 3 4 1 Worker 2 | . 2 . . Tunneler 3 | 3 . . . Hauler 1 | . . 1 . Recycler 2 | 1 . 1 . Operator 2 | . . . 2 Watcher 2 | . 1 1 . Swarmer 3 | . . 3 . Grunt 8 | . 2 6 . Brawler 2 | . . 2 . Sentry 3 | . . 3 . Best Kill Streak 5 | 2 3 5 1 Combat Bots Only 5 | . 1 5 . Max Kills in Single Turn 1 | 1 1 1 1 Gunslinging . | . . . . Exploded 1 | . . 1 . Melee . | . . . . Uniques/NPCs Destroyed . | . . . . Combat | -11 -10 -9 -8 -------- Run | Yrd Mat Mat Mat Hostile Shots Fired 55 | . 16 39 . Missed 21 | . 2 19 . Hits 34 | . 14 20 . Projectile 34 | . 14 20 . Critical Strikes 1 | . . 1 . Damage Taken 573 | . 193 380 . Core 72 | . 12 60 . Absorbed by Shields . | . . . . Core Remaining (%) 93 | 100 95 85 . Volleys Fired 67 | 10 19 36 2 Largest 2 | 2 2 2 2 Hottest 100 | 70 100 95 95 Shots Fired 133 | 20 37 72 4 Gun 127 | 20 36 69 2 Cannon . | . . . . Launcher 5 | . . 3 2 Special 1 | . 1 . . Kinetic 61 | 10 18 33 . Thermal 67 | 10 19 36 2 Explosive 5 | . . 3 2 Electromagnetic . | . . . . Robot Hit Streak 21 | 7 21 7 2 Robot Miss Streak 7 | 3 1 3 7 Penetration Max . | . . . . Secondary Targets . | . . . . Shots Hit Robots 94 | 13 31 48 2 Core Hits 42 | 5 8 26 3 Critical Kills . | . . . . Critical Parts Destroyed . | . . . . Critical Strikes 9 | 1 4 4 . Burn 9 | 1 4 4 . Melee Attacks . | . . . . Impact . | . . . . Slashing . | . . . . Piercing . | . . . . Sneak Attacks . | . . . . Combat Hostiles . | . . . . Follow-up Attacks . | . . . . Damage Inflicted 1399 | 166 389 751 93 Guns 1250 | 166 389 689 6 Cannons . | . . . . Explosions 149 | . . 62 87 Melee . | . . . . Ramming . | . . . . Kinetic 670 | 103 178 389 . Thermal 580 | 63 211 300 6 Explosive 149 | . . 62 87 Electromagnetic . | . . . . Impact . | . . . . Slashing . | . . . . Piercing . | . . . . Highest Corruption . | . . . . Average Corruption . | . . . . Corruption Purged . | . . . . Corruption Blocked . | . . . . Overload Shots . | . . . . Overflow Damage . | . . . . Projectiles . | . . . . Explosions . | . . . . Melee . | . . . . Knockbacks . | . . . . Impact . | . . . . Kinetic . | . . . . Secondary . | . . . . Self-Inflicted Damage . | . . . . Shots . | . . . . Rammed . | . . . . Targets Rammed . | . . . . Kicked . | . . . . Crushed . | . . . . Highest Temperature 118 | 45 117 118 21 Average Temperature 38 | 17 43 43 10 Received Heat Transfer 228 | . 105 123 . Siege Activations . | . . . . Martial Activations . | . . . . Shielding Activations . | . . . . Robots Disrupted . | . . . . Combat Hostiles . | . . . . Robots Corrupted . | . . . . Combat Hostiles . | . . . . Parts Fried . | . . . . Impact Corruptions . | . . . . Robots Melted 1 | . . 1 . Combat Hostiles 1 | . . 1 . Parts Melted 6 | 1 4 1 . Heat Transferred 2290 | 259 925 1096 10 Parts Sabotaged . | . . . . Parts Stolen . | . . . . Parts Stripped . | . . . . Power Chain Reactions . | . . . . Alert | -11 -10 -9 -8 ------- Run | Yrd Mat Mat Mat Maximum Alert Level 1 | . . 1 . Low Security (%) 86 | 100 100 73 100 Level 1 13 | . . 26 . Level 2 . | . . . . Level 3 . | . . . . Level 4 . | . . . . Level 5 . | . . . . High Security . | . . . . Max Security . | . . . . Peak Influence 227 | 5 30 227 93 Initial 83 | . . . 83 Average 77 | 2 5 142 89 Influence Increases 537 | 20 94 403 20 Destroy 0b10 Robot/C 320 | . 40 280 . Destroy 0b10 Robot/NC 60 | 20 15 15 10 Destroy Leader 86 | . 12 74 . Successful Hack 12 | . 12 . . Disable Machine 15 | . 15 . . Destroy Structure 29 | . . 19 10 Lose Combat Pursuer 15 | . . 15 . Influence Decreases 454 | 20 94 204 136 Entered New Map 116 | . . . 116 Time Decay 328 | 20 94 194 20 Lost Part 10 | . . 10 . Squads Dispatched 2 | . . 2 . Investigation . | . . . . Extermination . | . . . . Reinforcement 2 | . . 2 . Assault . | . . . . Garrison . | . . . . Intercept . | . . . . Searches Triggered . | . . . . Construction Impeded . | . . . . Haulers Reinforced . | . . . . Active Scanning Responses . | . . . . Cargo Convoy Interrupts . | . . . . Stealth | -11 -10 -9 -8 --------- Run | Yrd Mat Mat Mat Distress Signals 2 | . . 2 . Communications Jammed . | . . . . Distress Signals . | . . . . Times Spotted 23 | . 3 18 2 Peak Tracking Total 5 | . 2 5 1 Tactical Retreats 1 | . . 1 . Traps | -11 -10 -9 -8 ------- Run | Yrd Mat Mat Mat Traps Triggered 1 | . . 1 . Indirectly . | . . . . Trap Hack Attempts . | . . . . Triggered . | . . . . Disarmed . | . . . . Reprogrammed . | . . . . Reused . | . . . . Traps Extracted . | . . . . Installed . | . . . . Triggered . | . . . . Machines | -11 -10 -9 -8 ---------- Run | Yrd Mat Mat Mat Machines Disabled 1 | . 1 . . Max in Single Turn 1 | . 1 . . Machines Repaired . | . . . . Machines Dismantled . | . . . . Machines Sabotaged . | . . . . Overloaded Fab Kills . | . . . . Hacking | -11 -10 -9 -8 --------- Run | Yrd Mat Mat Mat Machines Accessed 4 | . 2 1 1 Terminals 4 | . 2 1 1 Fabricators . | . . . . Repair Stations . | . . . . Recycling Units . | . . . . Scanalyzers . | . . . . Garrison Access . | . . . . Total Hacks 16 | . 12 2 2 Successful 9 | . 8 . 1 Failed 7 | . 4 2 1 Catastrophic . | . . . . Database Lockouts . | . . . . Manual 7 | . 5 2 . Terminals 16 | . 12 2 2 Fabricators . | . . . . Repair Stations . | . . . . Recycling Units . | . . . . Scanalyzers . | . . . . Garrison Access . | . . . . Terminal Hacks 7 | . 6 . 1 Robot Analysis 1 | . 1 . . Prototype ID Bank 1 | . 1 . . Emergency Access Points 1 | . 1 . . Terminal Index 1 | . 1 . . Locate Traps 2 | . 2 . . Zone Layout 1 | . . . 1 Fabricator Hacks . | . . . . Repair Station Hacks . | . . . . Recycling Unit Hacks . | . . . . Scanalyzer . | . . . . Garrison Access Hacks . | . . . . Unauthorized Hacks 2 | . 2 . . Terminals 2 | . 2 . . Botnet 2 | . 2 . . Fabricators . | . . . . Repair Stations . | . . . . Recycling Units . | . . . . Scanalyzers . | . . . . Garrison Access . | . . . . Data Cores Recovered 2 | . . . 2 Used . | . . . . Hacking Detections 2 | . 1 1 . Full Trace Events 1 | . . 1 . Feedback Events . | . . . . Feedback Blocked . | . . . . Robot Schematics Acquired . | . . . . Robots Built . | . . . . Authchips . | . . . . Time . | . . . . Total Robot Build Rating . | . . . . Part Schematics Acquired . | . . . . Parts Built . | . . . . Authchips . | . . . . Time . | . . . . Total Part Build Rating . | . . . . Parts Repaired . | . . . . Time . | . . . . Parts Recycled . | . . . . Recycled Matter . | . . . . Retrieved Matter . | . . . . Retrieved Components . | . . . . Parts Scanalyzed . | . . . . Part Schematics Acquired . | . . . . Parts Damaged . | . . . . Bothacking | -11 -10 -9 -8 ------------ Run | Yrd Mat Mat Mat Used RIF Installer . | . . . . Robots Hacked . | . . . . Non-combat . | . . . . Combat . | . . . . Robot Hacks Applied . | . . . . Relay Couplers Released . | . . . . Fabnet Peak Effective % . | . . . . Robots Rewired . | . . . . Allies Hacked . | . . . . Hacks Repelled . | . . . . Allies | -11 -10 -9 -8 -------- Run | Yrd Mat Mat Mat Total Allies . | . . . . Largest Group . | . . . . Highest-Rated Group . | . . . . Highest-Rated Ally . | . . . . Total Orders . | . . . . Ally Attacks . | . . . . Total Damage . | . . . . Kills . | . . . . Allies Corrupted . | . . . . Allies Melted . | . . . . Intel | -11 -10 -9 -8 ------- Run | Yrd Mat Mat Mat Active Infowar (turns) 818 | 28 298 449 43 Sensors 525 | . 33 449 43 Seismic 293 | 28 265 . . Robot Analysis Total 1 | . 1 . . Derelict Logs Recovered . | . . . . Drone Launches . | . . . . Drone Recoveries . | . . . . Exploration | -11 -10 -9 -8 ------------- Run | Yrd Mat Mat Mat Turns Passed 908 | 110 306 449 43 Spaces Moved 545 | 57 186 273 29 Core 18 | 18 . . . Treads . | . . . . Legs 527 | 39 186 273 29 Wheels . | . . . . Hover . | . . . . Flight . | . . . . Fastest Speed 50 | 50 120 120 120 Average Speed 118 | 103 120 120 120 Slowest Speed 120 | 120 120 120 120 Overloaded Moves . | . . . . Propulsion Burnouts . | . . . . Robots Hopped . | . . . . Potential Cave-ins . | . . . . Cave-ins Triggered . | . . . . Exploration Rate (%) 21 | 4 46 26 10 Regions Visited 3 Branch Regions . Pre-discovered Areas . | . . . . Known Exits Taken 2 | . 1 1 . Unknown Exits Taken 1 | 1 . . . Scrap Searched . | . . . . Spaces Dug . | . . . . Terrain Destroyed 30 | . . 21 9 Melee . | . . . . Projectile . | . . . . AOE 30 | . . 21 9 Terrain Rammed . | . . . . Walls Destroyed . | . . . . Machines Disabled . | . . . . Actions | -11 -10 -9 -8 --------- Run | Yrd Mat Mat Mat Total 681 | 86 231 331 33 Wait 18 | 6 4 7 1 Move 542 | 56 185 272 29 Hop . | . . . . Pick Up 17 | 7 6 3 1 Fast Attach 5 | 4 1 . . Attach 6 | 3 . 3 . Detach . | . . . . Swap 13 | . 8 5 . Drop 13 | . 8 5 . Fire 67 | 10 19 36 2 Melee . | . . . . Ram . | . . . . Kick . | . . . . Crush . | . . . . Escape Stasis . | . . . . Rewire . | . . . . Trap . | . . . . Miscellaneous . | . . . . Route ------- -11/Scrapyard -10/Materials -9/Materials -8/Materials History --------- Turn | Location | Event 9 | -11/Scrapyard | Discovered new exit (range 15) 111 | -11/Scrapyard | Entered Materials 316 | -10/Materials | Build established: Mutant 358 | -10/Materials | Discovered new exit (range 9) 407 | -10/Materials | Identified exit to Materials 417 | -10/Materials | Entered another Materials area 417 | -9/Materials | Evolved 2 slots: Propulsion x2 784 | -9/Materials | Discovered new exit (range 16) 801 | -9/Materials | Identified exit to Materials 866 | -9/Materials | Entered another Materials area 866 | -8/Materials | Evolved 2 slots: Utility x1, Weapon x1 909 | -8/Materials | Self-destructed Last Messages --------------- LOCATION=MATERIALS GOAL=ESCAPE 00867_ O-16 Technician: "IFF HANDSHAKE FAILED. SECURING TERMINAL." 00867_ O-16 Technician destroyed. 00879_ K-01 Serf collects debris. 00880_ Acquired data core, extracted dynamic key. 00882_ Acquired Hacking Suite. 00885_ Acquired 9 matter. 00886_ K-01 Serf collects debris. 00892_ O-16 Technician: "IFF HANDSHAKE FAILED. SECURING TERMINAL." 00894_ O-16 Technician destroyed. 00896_ K-01 Serf collects debris. 00902_ Acquired data core, extracted dynamic key. 00904_ K-01 Serf collects debris. 00909_ Connecting with Terminal... >>Layout(Zone) Retrieving Zone 8W layout... Downloaded map data. Map ----- +----------------------------------------------------+ | ?????????????????????????????????????????????????? | | ?????????????????????????????????????????????????? | | ?????????????????????????????????????????????????? | | ?????????????????????????????????????????????????? | | ?????????????????????????????????????????????????? | | ?????????????????????????????????????????????????? | | ?????????????????????????????????????????????????? | | ?????????????????????????????????????????????????? | | ?????????????????????????????????????????????????? | | ???????????# # ? ? "R" # ?????????? | | ???????????# ############### """ #"""?????????? | | ?????????### ####################+#"""?????????? | | ????????? #"""?????????? | | ????????? + ?????????? | | ????????? #"""?????????? | | ?????????####+#################### ##"""?????????? | | ?????????# #??????????????# ##"""?????????? | | ?????????# #????########### ## ?????????? | | ?????????# #????# ##+#####?????????? | | ?????????# """ #????# [ """ # ?????????? | | ?????????? """ #????# """ # """ ?????????? | | ?????????# """ #????# """ # """""?????????? | | ?????????# """ #????# # """""?????????? | | ?????????# """ #????#" """ # x"""""?????????? | | ?????????# #????#T """ # """ ?????????? | | ?????????#############?#"@ """ # ?????????? | | ?????????????????#"""### #######+###??????? | | ????????????######"Y"# #+######## #??????? | | ????????????# ! #??????? | | ????????????# #??????? | | ????????????# #??????? | | ????????????# ???????? | | ?????????#### ##????????? | | ????????? k ########## | | ????????? # | | ????????? ### []! # | | ????????? #?# [] = ! | | ????????? #?# [] # | | ????????? #?###########+######## #? ! | | ????????? ######## ####### ##??######## | | ???????????????????????????? # #??????????? | | ???????????????????????????# !! # #??????????? | | ???????????????????????????? !! + +??????????? | | ???????????????????????????# # #??????????? | | ???????????????????????????# !# #??????????? | | ???????????????????????????# # #??????????? | | ???????????????????????????####+#?#####??????????? | | ?????????????????????????????????????????????????? | | ?????????????????????????????????????????????????? | | ?????????????????????????????????????????????????? | +----------------------------------------------------+ Best States ------------- Heat Dissipation 31 Energy Generation 14 Energy Capacity 250 Matter Stores 300 Matter Capacity 300 Sight Range 16 Robot Scan Range 14 Terrain Scan Density 10 Evasion (%) 55 Item Schematics ----------------- None Robot Schematics ------------------ None Fabricated ------------ Nothing Repaired ---------- Nothing Alien Tech Used ----------------- None Achievements -------------- None Challenges ------------ None Game ------ Seed LinearReflectiveTreads Manual? 0 Play Time 00:17:35 Cumulative 228.0 hours Start 2025.07.19 @ 19:24:13 End 2025.07.19 @ 19:48:27 Sessions 1 Manual Loads 0 Difficulty Rogue Special Mode None Game No. 401 Rogue 401 Adventurer 0 Explorer 0 Win Type - Total 1 Types 1/0/0/0/0/0/0/0/0/0 Lore% 29 Gallery% 47 Achievement% 39 Wizard Run 0 Options --------- Layout 1 ASCII 0 Keyboard 1 Movement Vi Keybinds 0 Fullscreen 0 Font 20/Smallcaps Map View 59x39 Zoom Use 0% Tactical HUD 1 Map Filters NONE Filters NONE Steam 1 RUN: b814beee-18ed-425c-9b34-2e428dbe07fb